bitfinex/quotes_SOLUSD_20260211
["timestamp","ask_amount","ask_price","bid_price","bid_amount"]
[1770820204511,3.29962821,82.038,81.977,41.62]
[1770820204512,6.37285381,82.087,82.03,12.23745198]
[1770820204715,12.23745198,82.08,82.04,12.23745198]
[1770820205030,12.23745198,82.05,82.011,3.22459898]
[1770820205231,49.88,82.079,82.02,12.23745198]
[1770820205232,12.23745198,82.06,82.02,12.23745198]
[1770820205413,12.23745198,82.07,82.031,3.22459898]
[1770820205615,12.23745198,82.09,82.05,12.23745198]
[1770820205816,4.61729252,82.094,82.035,3.22459898]
[1770820206129,12.23745198,82.07,82.023,3.22459898]
[1770820206427,12.23745198,82.07,82.03,12.23745198]
[1770820206625,3.29962821,82.069,82.031,3.22459898]
[1770820206826,3.29962821,82.059,82.02,3.22459898]
[1770820207028,3.29962821,82.069,82.031,3.22459898]
[1770820207414,3.29962821,82.049,82.015,12.19283776]
[1770820207731,12.23745198,82.08,82.003,12.19466381]
[1770820207732,15.53708019,82.03,82.003,12.19466381]
[1770820207935,3.29962821,82.029,81.991,3.22459898]
[1770820208119,3.29962821,82.029,81.949,48.81053396]
[1770820208120,3.29962821,82.009,81.977,12.19854349]
[1770820208321,3.29962821,82.027,81.991,3.22459898]
[1770820208528,3.29962821,82.027,81.977,42.69490222]
[1770820208529,3.29962821,82.059,82.021,3.22459898]
[1770820208924,3.29962821,82.058,82.021,3.22459898]
[1770820209427,3.29962821,82.069,82.03,12.23745198]
[1770820209738,12.18041632,82.099,81.977,298.86431556]
[1770820209739,3.29962821,82.059,82.021,3.22459898]
[1770820209935,3.29962821,82.029,81.978,3.22459898]
[1770820210132,3.29962821,82.029,81.991,3.22459898]
[1770820210331,3.29962821,82.027,81.992,12.19631183]
[1770820210529,12.19095918,82.028,81.958,3.22459898]
[1770820210530,3.29962821,81.999,81.958,3.22459898]
[1770820211037,47.22,82.026,81.93,48.8219984]
[1770820211038,15.53708019,82.01,81.971,3.22459898]
[1770820211235,12.23745198,82.02,81.981,3.22459898]
[1770820211545,5.36086188,82.044,81.939,4.61729252]
[1770820211546,12.23745198,82.05,82.011,3.22459898]
[1770820211716,12.23745198,82.05,81.992,42.68709141]
[1770820211717,3.29962821,82.055,82.021,3.22459898]
[1770820212048,12.23745198,82.08,82.041,3.22459898]
[1770820212348,15.48301251,82.079,82.043,3.22459898]
[1770820212514,3.29962821,82.059,82.02,12.23745198]
[1770820212719,3.29962821,82.049,82.018,12.19244112]
[1770820212940,3.29962821,82.049,82.011,3.22459898]
[1770820213236,12.23745198,82.05,82.01,12.23745198]
[1770820213534,12.23745198,82.05,82.012,12.19333756]
[1770820213738,12.23745198,82.04,82.013,3.22459898]
[1770820213935,3.29962821,82.029,82.001,12.19495972]
[1770820214518,3.29962821,82.019,81.981,3.22459898]
[1770820214742,3.29962821,82.019,81.986,12.1971601]
[1770820214949,3.29962821,82.019,81.984,12.19736295]
[1770820215239,3.29962821,82.029,81.993,3.22459898]
[1770820215431,3.29962821,82.034,82.001,3.22459898]
[1770820215625,3.29962821,82.019,81.984,12.19735987]
[1770820215831,3.29962821,82.019,81.988,12.19689637]
[1770820216031,3.29962821,82.019,81.984,12.19747954]
[1770820216239,3.29962821,82.019,81.991,12.19641969]
[1770820216434,3.29962821,82.019,81.962,41.98]
[1770820216435,24.43118625,82.01,81.972,3.22459898]
[1770820216736,24.43118625,82.01,81.943,48.81398547]
[1770820216737,12.23745198,81.99,81.951,3.22459898]
[1770820216938,50.34,82.001,81.962,3.22459898]
[1770820217126,12.23745198,81.99,81.962,3.22459898]
[1770820217439,12.23745198,81.99,81.962,12.20068178]
[1770820217743,3.29962821,81.999,81.963,3.22459898]
[1770820217928,3.29962821,81.989,81.958,12.20130846]
[1770820218127,3.29962821,81.989,81.957,12.20151667]
[1770820218329,3.29962821,81.989,81.952,3.22459898]
[1770820218537,12.23745198,81.99,81.952,3.22459898]
[1770820218837,3.29962821,81.997,81.961,3.22459898]
[1770820219193,3.29962821,81.969,81.94,0.1]
[1770820219621,12.23745198,81.96,81.94,0.1]
[1770820219821,12.23745198,81.97,81.94,3.32459898]
[1770820220862,12.19973404,81.969,81.94,3.32459898]
[1770820221141,12.23745198,81.95,81.94,0.1]
[1770820221327,3.25113924,81.949,81.92,0.1]
[1770820221641,3.25113924,81.949,81.921,12.206875]
[1770820221844,12.23745198,81.98,81.942,3.21673045]
[1770820222029,48.75808738,82.038,81.951,3.21673045]
[1770820222030,50.56,81.999,81.951,3.21673045]
[1770820222228,12.23745198,82.0,81.951,3.21673045]
[1770820222229,3.25113924,81.997,81.951,3.21673045]
[1770820222440,12.23745198,81.99,81.951,3.21673045]
[1770820222751,3.25113924,81.989,81.951,3.21673045]
[1770820223161,3.25113924,81.989,81.953,3.21673045]
[1770820223748,3.25113924,81.989,81.96,12.23745198]
[1770820223953,15.4479589,81.989,81.953,3.21673045]
[1770820224154,3.25113924,81.988,81.953,3.21673045]
[1770820224348,3.25113924,81.959,81.92,12.33745198]
[1770820224553,3.25113924,81.939,81.92,0.1]
[1770820224738,3.25113924,81.961,81.922,3.21673045]
[1770820225053,3.25113924,81.998,81.951,3.21673045]
[1770820225264,15.44663029,81.998,81.961,15.41765528]
[1770820225440,3.25113924,81.997,81.961,12.20092483]
[1770820225634,12.19549105,81.998,81.901,48.83889342]
[1770820225635,3.25113924,81.989,81.951,3.21673045]
[1770820225853,3.25113924,81.989,81.961,12.20092483]
[1770820226158,3.25113924,81.997,81.961,15.41765528]
[1770820226347,3.14340922,82.019,81.981,3.21673045]
[1770820226548,3.14340922,82.039,82.01,12.27183477]
[1770820226861,3.14340922,82.039,82.001,3.3652501]
[1770820227059,3.14340922,82.048,82.01,12.27183477]
[1770820227265,3.14340922,82.048,81.961,250.11895901]
[1770820227266,53.88340922,82.058,82.02,12.27183477]
[1770820227443,3.14340922,82.099,82.051,3.3652501]
[1770820227640,15.32223778,82.11,82.071,3.3652501]
[1770820227833,27.59407255,82.11,82.06,3.3652501]
[1770820228034,15.32223778,82.11,82.08,12.27183477]
[1770820228251,12.17893288,82.109,82.08,12.27183477]
[1770820228454,4.61729252,82.128,82.09,12.27183477]
[1770820228455,3.14340922,82.128,82.09,12.27183477]
[1770820228667,3.14340922,82.119,82.081,3.3652501]
[1770820228865,3.14340922,82.119,82.09,12.27183477]
[1770820229172,3.14340922,82.119,82.061,3.3652501]
[1770820229462,12.27183477,82.14,82.101,3.3652501]
[1770820229674,3.14340922,82.142,82.11,12.27183477]
[1770820229881,3.14340922,82.14,82.11,12.27183477]
[1770820230090,3.14340922,82.189,82.131,3.3652501]
[1770820230245,3.14340922,82.189,82.15,12.27183477]
[1770820230449,3.14340922,82.199,82.159,3.3652501]
[1770820230740,3.14340922,82.221,82.19,12.27183477]
[1770820230943,3.14340922,82.278,82.201,3.3652501]
[1770820231166,12.15492709,82.272,82.24,12.27183477]
[1770820231474,3.14340922,82.279,82.25,12.27183477]
[1770820231764,3.14340922,82.279,82.229,42.5640589]
[1770820231946,51.04,82.298,82.27,12.27183477]
[1770820232140,12.15229252,82.289,82.229,42.5640589]
[1770820232348,3.14340922,82.269,82.23,12.27183477]
[1770820232651,2.71624331,82.249,82.169,48.67967469]
[1770820232849,12.27183477,82.21,82.158,12.17161247]
[1770820233053,12.27183477,82.2,82.161,3.3652501]
[1770820233364,12.27183477,82.2,82.173,3.3652501]
[1770820233671,2.71657535,82.198,82.141,3.3652501]
[1770820233964,12.27183477,82.17,82.131,3.3652501]
[1770820234147,12.27183477,82.18,82.141,3.3652501]
[1770820234458,2.71690358,82.226,82.171,3.3652501]
[1770820234666,12.27183477,82.21,82.171,3.3652501]
[1770820234857,2.71690358,82.214,82.171,3.3652501]
[1770820235057,12.27183477,82.21,82.171,3.3652501]
[1770820235258,12.27183477,82.2,82.163,12.17081593]
[1770820235560,2.71722803,82.169,82.115,3.3652501]
[1770820235872,12.27183477,82.19,82.131,3.3652501]
[1770820236042,12.27183477,82.19,82.151,3.3652501]
[1770820236249,12.27183477,82.18,82.151,3.3652501]
[1770820236446,12.27183477,82.19,82.151,3.3652501]
[1770820236647,12.27183477,82.18,82.151,3.3652501]
[1770820236848,12.27183477,82.16,82.129,12.17592838]
[1770820237072,12.27183477,82.16,82.121,3.3652501]
[1770820237247,12.27183477,82.15,82.121,3.3652501]
[1770820238152,12.27183477,82.16,82.123,3.3652501]
[1770820238351,12.27183477,82.17,82.131,3.3652501]
[1770820238946,12.27183477,82.18,82.141,3.3652501]
[1770820239146,12.27183477,82.19,82.151,3.3652501]
[1770820239355,54.00810598,82.225,82.122,91.32753706]
[1770820239356,12.27183477,82.2,82.161,3.3652501]
[1770820239554,12.27183477,82.25,82.191,3.3652501]
[1770820239764,12.27183477,82.27,82.231,3.3652501]
[1770820240067,12.27183477,82.27,82.22,12.27183477]
[1770820240359,4.61729252,82.283,82.24,12.27183477]
[1770820240666,12.27183477,82.26,82.22,12.27183477]
[1770820240868,4.61729252,82.267,82.228,3.3652501]
[1770820241067,18.99608593,82.25,82.211,3.3652501]
[1770820241387,31.15425531,82.25,82.211,15.52904515]
[1770820241551,51.12,82.27,82.221,3.3652501]
[1770820241552,18.99608593,82.27,82.221,3.3652501]
[1770820241749,18.99608593,82.27,82.211,12.16379505]
[1770820241750,18.99608593,82.27,82.231,3.3652501]
[1770820242183,12.15229252,82.289,82.251,3.3652501]
[1770820242471,12.14668334,82.327,82.281,3.3652501]
[1770820242656,12.14668334,82.327,82.211,298.01362045]
[1770820242657,18.99608593,82.3,82.26,18.99608593]
[1770820243060,12.14668334,82.327,82.281,3.3652501]
[1770820243248,18.99608593,82.33,82.29,18.99608593]
[1770820243565,18.99608593,82.32,82.281,3.3652501]
[1770820243745,18.99608593,82.32,82.29,3.3652501]
[1770820243949,42.51235894,82.329,82.29,3.3652501]
[1770820244151,19.19608593,82.35,82.31,18.99608593]
[1770820244357,4.61729252,82.347,82.31,18.99608593]
[1770820244555,4.61729252,82.347,82.259,4.61729252]
[1770820244556,18.99608593,82.32,82.241,3.3652501]
[1770820244753,3.14340922,82.326,82.281,3.3652501]
[1770820244957,18.99608593,82.32,82.28,18.99608593]
[1770820245167,3.14340922,82.339,82.291,3.3652501]
[1770820245368,12.14422107,82.344,82.293,3.3652501]
[1770820245564,18.99608593,82.34,82.301,3.3652501]
[1770820246062,18.99608593,82.34,82.276,42.58]
[1770820246063,18.99608593,82.33,82.29,18.99608593]
[1770820246248,18.99608593,82.32,82.287,3.3652501]
[1770820246444,4.61729252,82.342,82.272,3.3652501]
[1770820246445,18.99608593,82.31,82.272,3.3652501]
[1770820246862,18.99608593,82.3,82.272,3.3652501]
[1770820247064,18.99608593,82.3,82.259,3.3652501]
[1770820247268,18.99608593,82.3,82.25,18.99608593]
[1770820247269,18.99608593,82.29,82.25,18.99608593]
[1770820247569,18.99608593,82.29,82.221,42.58]
[1770820247570,4.61729252,82.286,82.241,3.3652501]
[1770820247752,18.99608593,82.26,82.22,18.99608593]
[1770820248058,18.99608593,82.24,82.19,61.57608593]
[1770820248262,18.99608593,82.23,82.19,18.99608593]
[1770820248472,18.99608593,82.24,82.203,12.16500614]
[1770820248654,18.99608593,82.23,82.19,18.99608593]
[1770820248970,5.36086188,82.275,82.21,18.99608593]
[1770820248971,3.14340922,82.275,82.21,18.99608593]
[1770820249197,4.61729252,82.267,82.23,18.99608593]
[1770820249471,51.1,82.282,82.25,18.99608593]
[1770820249783,31.14529289,82.31,82.271,3.3652501]
[1770820249957,18.99608593,82.32,82.28,22.36133603]
[1770820250267,22.37211314,82.31,82.27,18.99608593]
[1770820250457,18.99608593,82.32,82.271,3.63236608]
[1770820250659,18.99608593,82.31,82.281,3.63236608]
[1770820250972,3.37602721,82.306,82.27,18.99608593]
[1770820251287,3.37602721,82.306,82.261,3.63236608]
[1770820251288,18.99608593,82.3,82.261,3.63236608]
[1770820251459,3.37602721,82.298,82.251,42.56]
[1770820251664,3.37602721,82.279,82.24,18.99608593]
[1770820251961,18.99608593,82.26,82.224,12.1618992]
[1770820252169,18.99608593,82.26,82.223,3.63236608]
[1770820252466,3.37602721,82.269,82.23,22.62845201]
[1770820252666,3.37602721,82.279,82.236,3.63236608]
[1770820253072,18.99608593,82.28,82.241,3.63236608]
[1770820253270,12.15081592,82.299,82.26,22.62845201]
[1770820253447,12.15376949,82.279,82.244,3.63236608]
[1770820253657,12.15376949,82.279,82.238,12.15972418]
[1770820253658,18.99608593,82.26,82.228,3.63236608]
[1770820253977,3.37602721,82.259,82.221,42.54]
[1770820254186,3.37602721,82.259,82.214,3.63236608]
[1770820254381,4.61729252,82.272,82.214,3.63236608]
[1770820254382,51.1,82.266,82.214,3.63236608]
[1770820254564,51.1,82.266,82.231,15.79321693]
[1770820254756,7.99331973,82.276,82.24,18.99608593]
[1770820254958,12.15376949,82.279,82.241,3.63236608]
[1770820255274,18.99608593,82.25,82.21,18.99608593]
[1770820255451,18.99608593,82.25,82.205,12.16463859]
[1770820255452,12.15968092,82.239,82.205,12.16463859]
[1770820255656,18.99608593,82.22,82.195,12.16610554]
[1770820255980,54.49602721,82.226,82.19,18.99608593]
[1770820256157,97.26080944,82.254,82.158,48.68640799]
[1770820256158,30.39278904,82.257,82.201,3.63236608]
[1770820256488,18.99608593,82.23,82.196,15.79834922]
[1770820256661,18.99608593,82.23,82.2,12.16536077]
[1770820256860,18.99608593,82.23,82.197,3.63236608]
[1770820257171,18.99608593,82.23,82.19,18.99608593]
[1770820257484,18.99608593,82.24,82.202,3.63236608]
[1770820257669,18.99608593,82.23,82.202,3.63236608]
[1770820257857,18.99608593,82.23,82.19,22.62845201]
[1770820258063,18.99608593,82.22,82.186,12.16748164]
[1770820258376,18.99608593,82.21,82.17,18.99608593]
[1770820258754,18.99608593,82.2,82.163,3.63236608]
[1770820258978,3.37602721,82.199,82.161,42.54]
[1770820259175,18.99608593,82.22,82.18,18.99608593]
[1770820259363,7.99331973,82.237,82.2,18.99608593]
[1770820259567,3.37602721,82.237,82.201,12.16530212]
[1770820259765,4.61729252,82.247,82.201,12.16530212]
[1770820259766,12.15923897,82.242,82.202,3.63236608]
[1770820259968,22.37211314,82.24,82.202,3.63236608]
[1770820260168,18.99608593,82.22,82.187,12.16724664]
[1770820260360,18.99608593,82.22,82.18,18.99608593]
[1770820260361,3.37602721,82.229,82.198,12.16565349]
[1770820260562,3.37602721,82.206,82.15,3.63236608]
[1770820260755,3.37602721,82.206,82.17,18.99608593]
[1770820261265,18.99608593,82.21,82.171,3.63236608]
[1770820261463,12.158594,82.247,82.201,3.63236608]
[1770820261780,3.37602721,82.262,82.23,18.99608593]
[1770820262075,3.37602721,82.259,82.22,18.99608593]
[1770820262457,18.99608593,82.25,82.21,34.79237333]
[1770820262657,3.37602721,82.249,82.165,48.68248953]
[1770820262858,4.61729252,82.237,82.21,18.99608593]
[1770820263082,18.99608593,82.25,82.21,18.99608593]
[1770820263083,51.22,82.246,82.21,18.99608593]
[1770820263373,3.37602721,82.229,82.181,3.63236608]
[1770820263681,12.16012451,82.236,82.193,12.1664086]
[1770820263985,18.99608593,82.23,82.196,12.16590881]
[1770820264161,15.53615172,82.236,82.17,18.99608593]
[1770820264162,18.99608593,82.21,82.17,18.99608593]
[1770820264360,18.99608593,82.19,82.161,12.17122479]
[1770820264578,18.99608593,82.18,82.147,3.63236608]
[1770820264762,3.37602721,82.169,82.133,12.17537174]
[1770820264962,4.61729252,82.192,82.107,3.63236608]
[1770820264963,3.37602721,82.159,82.107,3.63236608]
[1770820265162,3.37602721,82.149,82.107,12.17922954]
[1770820265476,18.99608593,82.17,82.13,18.99608593]
[1770820265677,18.99608593,82.14,82.104,3.63236608]
[1770820265982,12.17300271,82.149,82.096,42.633015]
[1770820265983,42.60550949,82.149,82.111,3.63236608]
[1770820266164,22.37211314,82.14,82.1,18.99608593]
[1770820266362,18.99608593,82.11,82.07,18.99608593]
[1770820266779,23.61337845,82.14,82.1,18.99608593]
[1770820267075,4.61729252,82.142,82.095,12.1808929]
[1770820267076,18.99608593,82.13,82.095,12.1808929]
[1770820267467,18.99608593,82.12,82.089,12.18189898]
[1770820267674,18.99608593,82.12,82.08,18.99608593]
[1770820267875,3.37602721,82.179,82.111,3.63236608]
[1770820268067,48.65492934,82.212,82.14,18.99608593]
[1770820268068,3.37602721,82.177,82.14,18.99608593]
[1770820268270,3.37602721,82.169,82.13,18.99608593]
[1770820268880,3.37602721,82.169,82.12,22.62845201]
[1770820269458,18.99608593,82.16,82.111,3.63236608]
[1770820269659,51.54,82.159,82.121,3.63236608]
[1770820269889,3.37602721,82.149,82.11,18.99608593]
[1770820270180,3.37602721,82.149,82.11,31.17486814]
[1770820270481,18.99608593,82.17,82.13,18.99608593]
[1770820270659,4.61729252,82.167,82.13,18.99608593]
[1770820270864,18.99608593,82.16,82.122,12.17700494]
[1770820271064,3.37602721,82.139,82.1,18.99608593]
[1770820271276,3.37602721,82.139,82.084,3.63236608]
[1770820271277,3.37602721,82.119,82.07,19.09608593]
[1770820271486,18.99608593,82.11,82.081,12.18308743]
[1770820271806,18.99608593,82.11,82.072,3.63236608]
[1770820271964,3.37602721,82.119,82.07,0.1]
[1770820271965,18.99608593,82.1,82.07,0.1]
[1770820272277,12.17744847,82.12,82.081,3.63236608]
[1770820272487,18.99608593,82.13,82.091,3.63236608]
[1770820272665,3.37602721,82.159,82.111,3.63236608]
[1770820272858,3.37602721,82.129,82.083,3.63236608]
[1770820273162,3.37602721,82.129,82.07,0.1]
[1770820273163,3.37602721,82.099,82.07,0.1]
[1770820273361,3.37602721,82.079,82.041,3.63236608]
[1770820273568,3.37602721,82.079,82.051,12.18749215]
[1770820273776,18.99608593,82.08,82.042,3.63236608]
[1770820273980,3.37602721,82.089,82.051,3.63236608]
[1770820274280,18.99608593,82.09,82.051,3.63236608]
[1770820274675,51.6,82.098,82.06,18.99608593]
[1770820274879,18.99608593,82.1,82.061,3.63236608]
[1770820275084,18.99608593,82.11,82.07,18.99608593]
[1770820275264,18.99608593,82.11,82.07,22.62845201]
[1770820275779,12.1833843,82.079,82.041,42.66159602]
[1770820275972,12.1833843,82.079,82.041,12.18902743]
[1770820276172,3.37602721,82.094,82.051,3.63236608]
[1770820276466,12.18041632,82.099,82.061,3.63236608]
[1770820276784,18.99608593,82.15,82.091,3.63236608]
[1770820276963,18.99608593,82.13,82.091,3.63236608]
[1770820277278,3.37602721,82.153,82.12,18.99608593]
[1770820277577,18.99608593,82.18,82.14,18.99608593]
[1770820277782,3.37602721,82.196,82.151,46.23683832]
[1770820277982,48.63791377,82.241,82.151,46.23683832]
[1770820277983,22.37211314,82.22,82.18,18.99608593]
[1770820278165,3.37602721,82.219,82.181,3.63236608]
[1770820278365,3.37602721,82.189,82.133,3.63236608]
[1770820278566,18.99608593,82.19,82.152,3.63236608]
[1770820278780,237.11089491,82.24,82.151,12.17270635]
[1770820278781,18.99608593,82.21,82.17,18.99608593]
[1770820279078,18.99608593,82.2,82.16,18.99608593]
[1770820279278,3.37602721,82.199,82.151,12.17270635]
[1770820279479,18.99608593,82.18,82.146,12.17340141]
[1770820279674,18.99608593,82.18,82.143,12.17379937]
[1770820279877,18.99608593,82.17,82.132,3.63236608]
[1770820280075,3.37602721,82.178,82.143,12.17389187]
[1770820280581,3.80687981,82.236,82.171,3.74278219]
[1770820280881,18.99608593,82.22,82.18,18.99608593]
[1770820281084,3.80687981,82.223,82.19,18.99608593]
[1770820281276,3.80687981,82.219,82.17,18.99608593]
[1770820281469,3.80687981,82.209,82.143,42.60862154]
[1770820281667,3.80687981,82.189,82.15,18.99608593]
[1770820281980,3.80687981,82.18,82.143,12.17389187]
[1770820282180,22.80296574,82.18,82.14,18.99608593]
[1770820282387,22.80296574,82.18,82.15,12.17274945]
[1770820282679,22.80296574,82.18,82.126,42.98]
[1770820282680,3.80687981,82.174,82.13,22.73886812]
[1770820282884,3.80687981,82.174,82.101,97.4403669]
[1770820282885,3.80687981,82.149,82.11,18.99608593]
[1770820283087,3.80687981,82.139,82.1,18.99608593]
[1770820283381,4.61729252,82.185,82.131,3.74278219]
[1770820283583,18.99608593,82.18,82.141,3.74278219]
[1770820283783,18.99608593,82.18,82.14,31.1702949]
[1770820283963,12.16716636,82.189,82.151,3.74278219]
[1770820284162,12.16716636,82.189,82.113,43.04]
[1770820284163,3.80687981,82.169,82.135,12.17506529]
[1770820284380,3.80687981,82.179,82.14,18.99608593]
[1770820284682,42.58486215,82.189,82.106,43.06]
[1770820284683,18.99608593,82.15,82.11,18.99608593]
[1770820284884,18.99608593,82.15,82.073,48.73674446]
[1770820284885,22.87113691,82.13,82.095,12.18099782]
[1770820285077,3.80687981,82.119,82.081,3.74278219]
[1770820285280,3.80687981,82.109,82.07,19.0642571]
[1770820285586,5.36086188,82.138,82.025,48.76554055]
[1770820285587,19.0642571,82.1,82.069,12.18486882]
[1770820285784,31.24762807,82.08,82.041,30.4722173]
[1770820286087,4.61729252,82.112,82.06,19.0642571]
[1770820286088,19.0642571,82.1,82.06,19.0642571]
[1770820286282,19.0642571,82.1,82.061,3.964302]
[1770820287070,22.98211022,82.11,82.071,3.964302]
[1770820287284,19.0642571,82.1,82.071,3.964302]
[1770820287486,19.0642571,82.09,82.05,19.0642571]
[1770820287871,19.0642571,82.07,82.031,3.964302]
[1770820288072,12.18190013,82.089,82.045,16.15259703]
[1770820288073,51.76,82.084,82.045,16.15259703]
[1770820288371,19.0642571,82.08,82.045,16.15259703]
[1770820288567,19.0642571,82.11,82.07,19.0642571]
[1770820288766,19.0642571,82.11,82.071,3.964302]
[1770820288966,12.17823597,82.114,82.08,19.0642571]
[1770820289294,19.0642571,82.09,82.05,19.0642571]
[1770820289790,19.0642571,82.08,82.047,3.964302]
[1770820289989,3.91785312,82.059,82.026,12.19120487]
[1770820290175,19.0642571,82.04,82.006,12.19421625]
[1770820290570,12.1833843,82.079,82.031,3.964302]
[1770820290772,12.18256817,82.085,82.051,3.964302]
[1770820291079,51.84,82.099,82.061,3.964302]
[1770820291387,4.61729252,82.122,82.012,5.36086188]
[1770820291388,3.91785312,82.123,82.09,19.0642571]
[1770820291592,19.0642571,82.11,82.07,19.0642571]
[1770820291767,19.0642571,82.12,82.081,3.964302]
[1770820292075,19.0642571,82.12,82.08,19.0642571]
[1770820292076,16.09545121,82.118,82.08,19.0642571]
[1770820292271,19.0642571,82.13,82.09,23.0285591]
[1770820292483,12.17166637,82.159,82.121,3.964302]
[1770820292787,3.91785312,82.162,82.13,19.0642571]
[1770820292989,3.91785312,82.179,82.13,19.0642571]
[1770820293290,3.91785312,82.169,82.13,19.0642571]
[1770820293490,3.91785312,82.149,82.11,19.0642571]
[1770820293689,3.91785312,82.119,82.069,3.964302]
[1770820293987,19.0642571,82.11,82.071,12.18457189]
[1770820294209,19.0642571,82.1,82.071,12.18457189]
[1770820294578,16.096786,82.109,82.071,12.18457189]
[1770820294889,19.0642571,82.12,82.08,19.0642571]
[1770820295096,4.61729252,82.137,82.091,3.964302]
[1770820295389,19.0642571,82.13,82.091,3.964302]
[1770820295568,51.88,82.148,82.081,43.16]
[1770820295569,22.98211022,82.15,82.11,19.0642571]
[1770820295772,12.17300271,82.149,82.11,19.0642571]
[1770820295986,12.17300271,82.149,82.081,43.16]
[1770820295987,31.24021354,82.13,82.091,12.18160334]
[1770820296291,19.0642571,82.11,82.075,12.18395311]
[1770820296792,19.0642571,82.11,82.054,43.16]
[1770820296793,19.0642571,82.09,82.05,19.0642571]
[1770820297088,3.91785312,82.099,82.05,23.0285591]
[1770820297298,19.0642571,82.09,82.05,19.0642571]
[1770820297686,19.0642571,82.07,82.044,12.18858173]
[1770820297879,19.0642571,82.08,82.045,3.964302]
[1770820298077,12.17908121,82.108,82.07,19.0642571]
[1770820298276,19.0642571,82.15,82.1,19.0642571]
[1770820298597,19.0642571,82.15,82.081,3.964302]
[1770820298598,19.0642571,82.12,82.08,62.2442571]
[1770820298782,3.91785312,82.129,82.09,19.0642571]
[1770820298985,3.91785312,82.142,82.1,19.0642571]
[1770820299198,3.91785312,82.142,82.11,19.0642571]
[1770820299376,4.61729252,82.146,82.11,19.0642571]
[1770820299573,3.91785312,82.155,82.111,3.964302]
[1770820299790,3.91785312,82.179,82.14,23.0285591]
[1770820299986,22.98211022,82.15,82.111,12.17863623]
[1770820300189,12.17152107,82.159,82.12,19.0642571]
[1770820300390,3.91785312,82.163,82.13,19.0642571]
[1770820300595,12.17087248,82.164,82.13,19.0642571]
[1770820300792,12.16859353,82.179,82.14,23.0285591]
[1770820301193,3.91785312,82.178,82.14,19.0642571]
[1770820301386,3.91785312,82.149,82.1,53.47903077]
[1770820301586,19.0642571,82.14,82.1,23.0285591]
[1770820301784,3.91785312,82.149,82.111,12.17863623]
[1770820302092,12.16707831,82.189,82.141,3.964302]
[1770820302278,3.91785312,82.179,82.14,19.0642571]
[1770820302486,42.5847741,82.189,82.15,19.0642571]
[1770820302487,4.61729252,82.186,82.15,19.0642571]
[1770820302680,19.0642571,82.18,82.14,23.0285591]
[1770820302892,19.0642571,82.18,82.141,3.964302]
[1770820303091,51.9,82.193,82.16,19.0642571]
[1770820303286,48.63015764,82.254,82.131,103.49319987]
[1770820303287,3.91785312,82.219,82.18,19.0642571]
[1770820303797,3.91785312,82.221,82.161,3.964302]
[1770820303996,16.08182401,82.21,82.17,19.0642571]
[1770820304298,3.91785312,82.223,82.18,23.0285591]
[1770820304600,16.07990023,82.223,82.19,19.0642571]
[1770820304789,19.0642571,82.22,82.18,23.0285591]
[1770820305805,0.2,82.24,82.211,3.964302]
[1770820305980,12.15968092,82.239,82.211,3.964302]
[1770820306184,0.2,82.24,82.212,12.1636744]
[1770820306387,3.91785312,82.266,82.23,19.0642571]
[1770820306590,16.07361388,82.266,82.22,19.0642571]
[1770820306785,3.91785312,82.275,82.24,19.0642571]
[1770820307091,3.91785312,82.267,82.23,19.0642571]
[1770820307292,3.91785312,82.28,82.25,19.0642571]
[1770820307485,3.91785312,82.289,82.25,19.0642571]
[1770820307885,4.61729252,82.303,82.212,237.19165084]
[1770820307886,19.0642571,82.31,82.27,19.0642571]
[1770820308096,19.0642571,82.29,82.251,3.964302]
[1770820308293,16.07014564,82.289,82.25,19.0642571]
[1770820308496,3.91785312,82.328,82.28,19.0642571]
[1770820308799,48.81493934,82.365,82.246,3.964302]
[1770820308800,3.91785312,82.329,82.246,3.964302]
[1770820309007,19.0642571,82.31,82.272,3.964302]
[1770820309219,19.0642571,82.3,82.257,3.964302]
[1770820309501,188.22329353,82.349,82.26,19.0642571]
[1770820309502,3.91785312,82.297,82.26,19.0642571]
[1770820309709,3.91785312,82.297,82.25,19.0642571]
[1770820309893,3.91785312,82.279,82.235,12.1601326]
[1770820310089,19.0642571,82.27,82.235,12.1601326]
[1770820310292,19.0642571,82.27,82.22,30.40600894]
[1770820310293,19.0642571,82.26,82.22,19.0642571]
[1770820310491,3.91785312,82.269,82.23,31.22512776]
[1770820310787,19.0642571,82.27,82.241,4.27546924]
[1770820311000,12.15376949,82.279,82.241,4.27546924]
[1770820311386,12.15376949,82.279,82.231,12.1608639]
[1770820311387,4.23940095,82.269,82.231,12.1608639]
[1770820311592,19.0642571,82.28,82.241,4.27546924]
[1770820311908,4.23940095,82.269,82.23,19.0642571]
[1770820312117,12.15539456,82.268,82.231,12.1608639]
[1770820312318,16.39479551,82.268,82.231,12.1608639]
[1770820312495,19.0642571,82.26,82.222,12.16212961]
[1770820313003,19.0642571,82.26,82.227,12.16145454]
[1770820313204,19.0642571,82.3,82.251,4.27546924]
[1770820313414,19.0642571,82.3,82.231,121.60863906]
[1770820313415,19.0642571,82.34,82.291,4.27546924]